bitfinex/quotes_ETHUSD_20251217
["timestamp","ask_amount","ask_price","bid_price","bid_amount"]
[1765954869414,0.001,2941.3,2941.2,4.3551728]
[1765954869994,0.001,2941.3,2941.2,3.8926728]
[1765954870190,0.4898,2941.3,2941.2,3.3999728]
[1765954871586,0.001,2941.3,2941.2,3.3999728]
[1765954872123,0.001,2941.3,2941.2,3.8926728]
[1765954872333,0.001,2941.3,2941.2,4.3551728]
[1765954873019,0.001,2941.3,2941.2,3.8926728]
[1765954875113,0.1642,2941.3,2941.2,6.97717663]
[1765954875300,0.1642,2941.3,2941.2,3.3999728]
[1765954875622,0.6293,2941.3,2941.2,3.3999728]
[1765954875916,0.6293,2941.3,2938.5,0.67605397]
[1765954875917,0.6314,2941.2,2941.1,3.40006109]
[1765954876115,0.6314,2941.2,2941.1,3.93706109]
[1765954877388,0.001,2941.3,2941.2,0.4927]
[1765954877599,0.001,2941.3,2941.2,8.10960766]
[1765954878033,0.001,2941.3,2941.2,4.53240383]
[1765954879728,0.001,2941.3,2941.2,7.93237663]
[1765954881439,0.1642,2941.3,2941.2,6.97717663]
[1765954881606,0.6293,2941.3,2941.2,6.97717663]
[1765954881808,0.1642,2941.3,2941.2,6.97717663]
[1765954882120,0.6293,2941.3,2941.2,3.3999728]
[1765954882326,0.6293,2941.3,2941.2,3.9369728]
[1765954882633,0.1642,2941.3,2941.2,3.9369728]
[1765954884332,0.1642,2941.3,2941.2,7.50923757]
[1765954885523,0.1642,2941.3,2941.2,3.9369728]
[1765954887509,0.001,2941.3,2941.2,4.8921728]
[1765954887706,0.001,2941.3,2941.2,9.65096802]
[1765954887909,0.001,2941.3,2941.2,13.22330605]
[1765954888307,0.001,2941.3,2941.2,9.18846802]
[1765954888721,0.001,2941.3,2941.2,9.65096802]
[1765954889126,0.001,2941.3,2941.2,13.22330605]
[1765954890037,0.001,2941.3,2941.2,9.18846802]
[1765954890242,0.4898,2941.3,2941.2,4.58642999]
[1765954890415,0.4898,2941.3,2941.2,8.69576802]
[1765954890842,0.6326,2941.3,2941.2,3.9369728]
[1765954891048,0.6326,2941.3,2941.2,7.50931083]
[1765954891218,0.001,2941.3,2941.2,7.50931083]
[1765954893051,0.001,2941.3,2941.2,8.00201083]
[1765954895348,0.483,2941.3,2941.2,7.50931083]
[1765954895551,0.483,2941.3,2941.2,3.3999728]
[1765954895743,0.483,2941.3,2941.2,3.9369728]
[1765954897643,0.001,2941.3,2941.2,4.8614728]
[1765954897844,0.001,2941.3,2941.2,4.3244728]
[1765954898044,0.001,2941.3,2941.2,4.8614728]
[1765954898957,0.001,2941.3,2941.2,6.04486237]
[1765954901886,0.001,2941.3,2941.2,5.04296237]
[1765954902203,0.001,2941.3,2941.2,5.57996237]
[1765954903166,0.001,2941.3,2941.2,6.04486237]
[1765954903566,0.001,2941.3,2941.2,9.6172004]
[1765954903783,0.001,2941.3,2941.2,6.04486237]
[1765954903994,0.001,2941.3,2941.2,10.49736177]
[1765954904186,0.001,2942.5,2941.4,0.870404]
[1765954904393,0.001,2942.5,2942.2,4.03723803]
[1765954904598,0.001,2942.5,2942.3,0.537]
[1765954904997,0.001,2942.5,2942.4,7.89542421]
[1765954906507,0.001,2942.5,2942.4,11.46776224]
[1765954906804,0.001,2942.5,2942.4,7.89542421]
[1765954906966,0.001,2942.5,2942.4,8.63675636]
[1765954907170,0.001,2942.5,2942.4,12.20909439]
[1765954907367,0.001,2942.5,2942.4,8.63675636]
[1765954907901,0.001,2942.5,2942.4,12.20909439]
[1765954908105,0.001,2942.5,2942.4,12.21937153]
[1765954910111,0.001,2942.5,2942.4,3.85818618]
[1765954910312,0.001,2942.5,2942.4,4.39518618]
[1765954910487,0.001,2942.5,2942.4,4.86008618]
[1765954910672,0.001,2942.5,2942.4,3.85818618]
[1765954910877,0.7427,2942.5,2942.4,3.93558618]
[1765954911181,0.7427,2942.5,2941.8,3.39927935]
[1765954911182,0.4899,2941.9,2941.8,3.39927935]
[1765954911380,0.2952,2941.8,2941.6,3.39943977]
[1765954911581,0.445,2941.6,2941.5,3.39957808]
[1765954911985,0.7432,2941.6,2941.5,3.39957808]
[1765954912587,0.445,2941.6,2941.5,3.39957808]
[1765954912804,0.4435,2941.6,2941.5,3.39957808]
[1765954913104,0.2997,2941.8,2941.4,3.39974161]
[1765954913308,0.4421,2941.5,2941.4,3.39974161]
[1765954914312,0.7432,2941.5,2941.4,3.39974161]
[1765954915499,0.4407,2941.4,2941.3,3.93680657]
[1765954916208,0.4407,2941.4,2941.3,3.39980657]
[1765954916416,0.4407,2941.4,2941.3,3.93680657]
[1765954921029,0.4522,2941.7,2941.3,7.33666377]
[1765954921223,0.2921,2941.4,2941.3,3.93680657]
[1765954923599,0.7417,2941.4,2941.3,3.39980657]
[1765954923956,0.7417,2941.4,2941.3,3.40180657]
[1765954926161,0.7417,2941.4,2941.3,0.002]
[1765954928622,0.001,2941.7,2941.6,0.4993]
[1765954928812,0.2593,2941.6,2941.3,0.002]
[1765954929012,0.4942,2941.4,2941.3,0.002]
[1765954929232,0.4942,2941.4,2941.3,0.539]
[1765954929542,0.7559,2941.4,2941.3,0.539]
[1765954929742,0.4942,2941.4,2941.3,0.539]
[1765954930369,0.7559,2941.4,2941.3,3.9388572]
[1765954933470,0.4942,2941.4,2941.3,3.9388572]
[1765954937532,0.7559,2941.4,2941.3,3.9388572]
[1765954939937,0.4942,2941.4,2941.3,3.9388572]
[1765954941164,0.001,2941.6,2941.3,7.3387144]
[1765954941383,0.001,2941.6,2941.5,0.959]
[1765954941539,0.001,2941.6,2941.5,8.10337702]
[1765954941736,0.001,2941.6,2941.5,11.96738329]
[1765954941960,0.001,2942.8,2942.4,0.4993]
[1765954942161,0.001,2942.8,2942.4,3.57218851]
[1765954942162,0.2663,2942.5,2942.4,3.57218851]
[1765954942371,0.2663,2942.5,2942.4,0.537]
[1765954942583,0.7302,2942.5,2942.4,0.537]
[1765954942886,0.2663,2942.5,2942.4,0.537]
[1765954943476,0.001,2942.5,2942.4,1.0363]
[1765954944838,0.2683,2942.5,2942.4,3.93558618]
[1765954945037,0.7312,2942.4,2942.3,3.93563809]
[1765954945455,0.7312,2942.4,2941.6,0.46438023]
[1765954945456,0.4659,2942.4,2941.6,0.46438023]
[1765954945771,0.4966,2941.4,2941.3,7.50870837]
[1765954945938,0.7315,2941.4,2941.3,3.93875638]
[1765954946268,0.7315,2941.4,2941.3,0.002]
[1765954952374,0.4669,2941.6,2941.3,0.002]
[1765954952783,0.2653,2941.4,2941.3,0.002]
[1765954954886,0.7173,2941.4,2941.3,0.002]
[1765954955084,1.129082,2941.4,2941.3,0.002]
[1765954955392,4.52882361,2941.4,2941.3,0.002]
[1765954957857,1.129082,2941.4,2941.3,0.002]
[1765954958382,4.52882361,2941.4,2941.3,0.002]
[1765954959588,0.1839,2940.7,2940.4,0.4803]
[1765954959769,0.4655,2940.9,2940.5,0.538]
[1765954959967,0.4655,2940.9,2940.6,3.40066653]
[1765954960164,0.2706,2940.7,2940.6,3.40066653]
[1765954960976,0.2706,2940.9,2940.6,7.53547274]
[1765954961361,0.4636,2941.2,2940.6,8.00827274]
[1765954962379,0.4655,2941.5,2940.7,4.04555239]
[1765954964195,0.4655,2941.5,2940.8,6.8008705]
[1765954964380,0.4655,2941.5,2940.9,0.538]
[1765954964696,0.2706,2941.0,2940.9,0.538]
[1765954965698,0.4636,2941.3,2940.9,0.538]
[1765954966396,0.2725,2941.1,2941.0,3.40020401]
[1765954974022,0.7342,2941.1,2941.0,3.40020401]
[1765954975773,0.7342,2941.1,2941.0,3.40220401]
[1765954976981,0.4665,2941.6,2941.1,0.4728]
[1765954977191,0.001,2941.6,2941.2,4.04555239]
[1765954977411,0.001,2941.6,2941.3,0.538]
[1765954977704,0.4665,2941.6,2941.3,0.538]
[1765954978198,0.7342,2941.5,2941.4,3.39974161]
[1765954978911,0.001,2941.6,2941.4,3.87804161]
[1765954979204,0.2706,2941.5,2941.4,3.39974161]
[1765954979375,0.4655,2941.5,2941.0,0.002]
[1765954979577,0.2706,2941.1,2941.0,3.94020401]
[1765954979815,0.4636,2941.3,2941.0,7.34040802]
[1765954980305,0.001,2941.6,2941.2,0.4728]
[1765954980514,0.001,2941.6,2941.3,3.57275239]
[1765954980698,0.001,2941.6,2941.4,0.537]
[1765954981428,0.001,2941.6,2941.5,4.05105239]
[1765954981583,0.001,2941.6,2941.5,5.33993287]
[1765954981994,0.001,2941.6,2941.5,4.86713287]
[1765954982314,0.2738,2941.6,2941.5,3.39962604]
[1765954982607,0.7374,2941.6,2941.5,3.93662604]
[1765954983413,0.001,2941.6,2941.5,8.46047843]
[1765954983780,0.001,2941.6,2941.5,7.98767843]
[1765954984620,0.001,2941.6,2941.5,8.62075277]
[1765954985509,0.2738,2941.6,2941.5,8.14245277]
[1765954986510,0.001,2941.6,2941.5,8.63665277]
[1765954986815,0.4617,2941.5,2941.1,10.37292919]
[1765954987017,0.2765,2941.2,2941.1,3.86446863]
[1765954987230,0.2765,2941.2,2941.1,7.97422102]
[1765954987425,0.4617,2941.5,2941.1,12.85197258]
[1765954988225,0.2765,2941.2,2941.1,9.45188418]
[1765954989809,0.4617,2941.5,2941.1,12.85197258]
[1765954990815,0.4925,2941.5,2941.0,0.002]
[1765954991014,0.7361,2941.1,2941.0,0.002]
[1765954993119,4.1361884,2941.1,2941.0,0.002]
[1765954993327,0.7361,2941.1,2941.0,0.002]
[1765954993997,4.1361884,2941.1,2941.0,0.002]
[1765954994415,4.88979319,2941.1,2941.0,0.002]
[1765954994893,1.48970479,2941.1,2941.0,0.002]
[1765954997245,0.2461,2941.1,2941.0,0.002]
[1765954997402,0.7361,2941.1,2941.0,0.002]
[1765955001945,0.001,2941.5,2941.1,0.1918]
[1765955002152,0.001,2941.5,2941.4,4.06695239]
[1765955002446,0.001,2941.5,2941.4,5.10455239]
[1765955003121,0.001,2941.5,2941.4,5.61603534]
[1765955003510,0.001,2941.5,2941.4,9.01577695]
[1765955004030,0.001,2941.5,2941.4,4.44922456]
[1765955004341,0.25,2941.5,2941.4,4.44922456]
[1765955004531,0.001,2941.5,2941.4,4.44922456]
[1765955004734,0.001,2941.5,2941.4,4.94342456]
[1765955008158,0.001,2941.5,2941.4,5.47702197]
[1765955008455,0.001,2941.5,2941.4,5.90740479]
[1765955008750,0.4935,2942.6,2942.4,0.4942]
[1765955008751,0.001,2942.6,2942.4,0.4942]
[1765955008923,0.001,2942.6,2942.4,1.0322]
[1765955009959,0.25,2942.5,2942.4,0.538]
[1765955010154,0.001,2942.5,2942.4,4.43078618]
[1765955010338,0.001,2942.5,2942.4,4.93038618]
[1765955010549,0.25,2942.5,2942.4,3.93658618]
[1765955011657,0.001,2942.5,2942.4,9.23544579]
[1765955011853,0.001,2942.5,2942.4,5.1643149]
[1765955012956,0.001,2942.5,2942.4,5.6639149]
[1765955014137,0.001,2942.5,2942.4,5.1643149]
[1765955014728,0.001,2942.5,2942.4,5.6462149]
[1765955018254,0.001,2942.5,2942.4,5.1643149]
[1765955018456,0.2551,2942.5,2942.4,3.93658618]
[1765955019428,0.2551,2942.5,2942.4,3.39858618]
[1765955019629,0.7343,2942.5,2942.4,3.93558618]
[1765955020865,0.001,2942.5,2942.4,4.40278618]
[1765955021063,0.001,2942.5,2942.4,4.85778618]
[1765955021534,0.001,2942.5,2942.4,4.40278618]
[1765955023635,0.001,2942.5,2942.4,4.85778618]
[1765955024372,0.001,2942.5,2942.4,9.65345128]
[1765955024667,0.001,2942.5,2942.4,9.61946542]
[1765955027760,0.001,2942.5,2942.4,6.05059863]
[1765955028077,0.001,2942.5,2942.4,13.18833221]
[1765955028371,0.001,2942.5,2942.4,9.61946542]
[1765955029761,0.001,2942.5,2942.4,5.51359863]
[1765955029964,0.001,2942.5,2942.4,9.61946542]
[1765955030167,0.001,2942.5,2942.4,5.51359863]
[1765955030369,0.001,2942.5,2942.4,9.61946542]
[1765955030569,0.001,2942.5,2942.4,9.60918828]
[1765955032871,0.001,2942.5,2942.4,13.17805507]
[1765955033663,0.001,2942.5,2942.4,9.60918828]
[1765955034785,0.2622,2942.5,2942.4,3.39858618]
[1765955035077,0.2622,2942.5,2942.4,4.89177204]
[1765955035078,0.001,2942.5,2942.4,4.89177204]
[1765955035246,0.001,2942.5,2942.4,8.42665297]
[1765955036743,0.477,2942.5,2942.4,3.39858618]
[1765955036945,0.477,2942.5,2942.4,3.93558618]
[1765955036946,0.7436,2942.5,2942.4,3.93558618]
[1765955037566,0.477,2942.5,2942.4,3.93558618]
[1765955039679,0.477,2942.5,2942.4,3.39858618]
[1765955039869,0.7436,2942.5,2942.4,3.93558618]
[1765955040177,0.477,2942.5,2942.4,3.93558618]
[1765955042554,0.001,2942.5,2942.2,3.93571876]
[1765955042973,0.2622,2942.5,2942.4,3.39858618]
[1765955043691,0.7426,2942.1,2941.5,0.477]
[1765955043855,0.4814,2942.4,2941.6,3.40142933]
[1765955044060,0.4814,2941.8,2941.6,3.40147361]
[1765955044291,0.7333,2941.7,2941.6,0.002]
[1765955044683,4.1326949,2941.7,2941.6,0.002]
[1765955044993,0.7333,2941.7,2941.6,0.002]
[1765955045169,0.4713,2941.7,2941.6,0.002]
[1765955045375,0.4693,2941.7,2941.6,0.002]
[1765955046197,0.1953,2941.9,2941.6,0.002]
[1765955046198,0.1873,2942.1,2941.6,1.4912]
[1765955046403,0.6721,2942.1,2941.6,1.4912]
[1765955046691,0.1873,2942.1,2941.7,3.3993949]
[1765955046889,0.1873,2942.1,2941.7,7.2816898]
[1765955047081,0.4848,2942.0,2941.7,3.3993949]
[1765955047268,0.2586,2941.8,2941.6,3.93947367]
[1765955047462,0.1873,2942.1,2941.6,0.002]
[1765955047463,0.4874,2941.7,2941.6,0.002]
[1765955048087,0.4874,2941.7,2941.6,3.40151047]
[1765955049885,0.4874,2941.7,2941.6,0.002]
[1765955052175,0.001,2942.5,2941.7,0.4829]
[1765955052401,0.001,2942.5,2942.4,0.4683]
[1765955052683,0.2596,2942.5,2942.4,0.538]
[1765955053291,0.2596,2942.5,2942.0,0.4829]
[1765955053468,0.4713,2942.4,2942.3,3.39861466]
[1765955053669,0.7432,2942.4,2942.3,3.39861466]
[1765955054068,0.4713,2942.4,2942.3,3.39861466]
[1765955054269,0.4713,2942.4,2942.3,4.13216674]
[1765955055078,0.4703,2942.5,2942.4,3.39858618]
[1765955055474,0.001,2942.5,2942.4,3.86688618]
[1765955055676,0.4703,2942.5,2942.4,3.39858618]
[1765955056991,0.001,2942.5,2942.4,3.86688618]
[1765955057190,0.001,2942.5,2942.4,4.71508147]
[1765955057481,0.2596,2942.5,2942.4,4.24678147]
[1765955061214,0.001,2942.5,2942.4,4.24678147]
[1765955061411,0.001,2942.5,2942.4,4.71508147]
[1765955062905,0.001,2942.5,2942.4,5.19798147]
[1765955063607,0.001,2942.5,2942.4,4.71508147]
[1765955063774,0.001,2942.5,2942.4,5.19798147]
[1765955063970,0.001,2942.5,2942.4,4.71508147]
[1765955064183,0.001,2942.5,2942.4,5.19798147]
[1765955064388,0.001,2942.5,2942.4,4.71508147]
[1765955064907,0.001,2942.5,2942.4,5.19798147]
[1765955067282,0.001,2942.5,2942.4,4.24678147]
[1765955067482,0.4723,2942.5,2942.4,3.93658618]
[1765955067681,0.001,2942.5,2942.4,3.93658618]
[1765955067883,0.001,2942.5,2942.4,4.40488618]
[1765955069313,0.001,2942.5,2942.4,4.88778618]
[1765955070296,0.001,2942.5,2942.4,4.89806332]
[1765955070501,0.001,2942.5,2942.4,6.19275553]
[1765955071627,0.001,2942.5,2942.4,3.39858618]
[1765955071784,0.251,2942.5,2942.4,3.93658618]
[1765955072114,0.251,2942.5,2942.4,3.39858618]
[1765955072319,0.251,2942.5,2942.4,3.93658618]
[1765955072519,0.251,2942.5,2942.4,3.39858618]
[1765955072719,0.251,2942.5,2942.4,3.93658618]
[1765955073620,0.0048,2942.4,2942.1,6.79786546]
[1765955073799,0.0048,2942.4,2942.2,0.538]
[1765955074331,0.001,2942.5,2942.2,0.538]
[1765955076126,0.001,2942.5,2942.3,6.79740338]
[1765955079439,0.001,2942.5,2942.4,0.4625]
[1765955079636,0.2375,2942.5,2942.3,6.79740338]
[1765955079836,0.005,2942.4,2942.3,3.39870169]
[1765955080013,0.5034,2942.4,2942.3,3.39870169]
[1765955084715,0.005,2942.4,2942.3,3.39870169]
[1765955086943,0.001,2942.5,2942.3,6.79740338]
[1765955087147,0.2365,2942.4,2942.3,3.39870169]
[1765955087964,0.001,2942.5,2942.3,7.25990338]
[1765955088647,0.001,2942.5,2942.4,0.4625]
[1765955089144,0.001,2942.5,2942.4,3.86108618]
[1765955089447,0.001,2942.5,2942.4,4.33018618]
[1765955089645,0.001,2942.5,2942.4,9.11774653]
[1765955089834,0.001,2942.5,2942.4,9.08376067]
[1765955090541,0.001,2942.5,2942.4,8.61466067]
[1765955091123,0.001,2942.5,2942.4,5.04476458]
[1765955091526,0.001,2942.5,2942.4,5.51386458]
[1765955092161,0.7359,2942.5,2942.4,5.12026458]
[1765955092330,0.7359,2942.5,2942.4,3.93658618]
[1765955092754,0.7359,2942.5,2942.4,3.39858618]
[1765955092961,0.7359,2942.5,2942.4,3.93658618]
[1765955093459,0.001,2942.5,2942.4,4.39908618]
[1765955093659,0.001,2942.5,2942.4,6.05283864]
[1765955093837,0.001,2942.5,2942.4,5.58373864]
[1765955097362,0.001,2942.5,2942.4,6.05283864]
[1765955097530,0.001,2942.5,2942.4,9.63247541]
[1765955100648,0.2423,2942.5,2942.4,4.58323864]
[1765955100845,0.001,2942.5,2942.4,8.43754581]
[1765955101469,0.001,2942.5,2942.4,8.44782295]
[1765955101677,0.001,2942.5,2942.4,8.43754581]
[1765955102055,0.001,2942.5,2942.4,7.96844581]
[1765955102969,0.001,2942.5,2942.4,8.43754581]
[1765955103172,0.001,2942.5,2942.4,9.63247541]
[1765955106175,0.001,2942.5,2942.4,9.62219827]
[1765955106480,0.2705,2942.5,2942.4,3.39858618]
[1765955106786,0.2705,2942.5,2942.4,3.93558618]
[1765955107089,0.2725,2942.5,2942.4,3.93558618]
[1765955108080,0.7384,2942.5,2942.4,3.93558618]
[1765955109469,0.2725,2942.5,2942.4,3.93558618]
[1765955109684,0.001,2942.5,2942.4,3.93558618]
[1765955109885,0.001,2942.5,2942.4,4.41008618]
[1765955110100,0.001,2942.5,2942.4,6.03222864]
[1765955110309,0.001,2942.5,2942.4,9.63557413]
[1765955110611,0.001,2942.5,2942.4,6.04250578]
[1765955111399,0.001,2942.5,2942.4,5.07442864]
[1765955111400,0.2588,2942.5,2942.4,5.07442864]
[1765955111581,0.001,2942.5,2942.4,6.03222864]
[1765955112181,0.001,2942.5,2942.4,6.04250578]
[1765955113004,0.001,2942.5,2942.4,9.61186541]
[1765955113509,0.001,2942.5,2942.4,6.04250578]
[1765955114508,0.001,2942.5,2942.4,9.61186541]
[1765955114742,0.001,2942.5,2942.4,6.04250578]
[1765955117338,0.001,2942.5,2942.4,6.03222864]
[1765955118624,0.001,2942.5,2942.4,9.60158827]
[1765955118935,0.001,2942.5,2942.4,9.61186541]
[1765955119135,0.001,2942.5,2942.4,13.18122504]
[1765955125566,0.001,2942.5,2942.4,9.61186541]
[1765955125743,0.001,2942.5,2942.4,9.60158827]
[1765955126265,0.001,2942.5,2942.4,9.61186541]
[1765955126659,0.001,2942.5,2942.4,13.18122504]
[1765955129264,0.001,2942.5,2942.4,7.97944581]
[1765955129481,0.001,2942.5,2942.4,3.87308618]
[1765955129679,0.001,2942.5,2942.4,4.41008618]
[1765955130191,0.2588,2942.5,2942.4,3.39858618]
[1765955130392,0.0047,2942.4,2942.3,3.39870169]
[1765955130604,0.4746,2942.4,2942.3,3.39870169]
[1765955130895,0.2532,2942.2,2942.1,0.537]
[1765955131096,0.7231,2942.2,2942.1,3.93593273]
[1765955131295,0.001,2942.5,2942.4,0.9578]
[1765955131599,0.001,2942.5,2942.4,4.04255345]
[1765955131793,0.001,2942.5,2942.4,0.9578]
[1765955132100,0.001,2942.5,2942.4,7.92443963]
[1765955134703,0.001,2942.5,2942.4,7.93471677]
[1765955135678,0.001,2942.5,2942.4,8.60380243]
[1765955142019,0.001,2942.5,2942.4,8.12050243]
[1765955142324,0.001,2942.5,2942.4,7.90851677]
[1765955143599,0.001,2942.5,2942.4,12.34645445]
[1765955143811,0.001,2942.6,2942.5,0.4888]
[1765955144106,0.001,2942.7,2942.6,1.351404]
[1765955144435,0.001,2942.7,2942.6,1.36168114]
[1765955144771,0.001,2942.7,2942.6,3.00593366]
[1765955144932,0.001,2942.7,2942.6,3.14207212]
[1765955145569,0.001,2942.7,2942.6,3.17605567]
[1765955145864,0.001,2942.7,2942.6,3.14207212]
[1765955146043,0.001,2942.7,2942.6,6.57441086]
[1765955146367,0.001,2942.7,2942.6,6.54042731]
[1765955147132,0.001,2943.6,2942.6,22.42420795]
[1765955147350,0.001,2943.6,2943.5,4.70855345]
[1765955147554,0.001,2943.6,2943.5,5.24555345]
[1765955148091,0.4947,2943.6,2943.5,3.93431612]
[1765955148233,0.6213,2943.6,2943.5,3.93431612]
[1765955148956,0.4947,2943.6,2943.5,3.93431612]
[1765955150627,0.001,2943.6,2943.5,4.88021612]
[1765955150864,0.001,2943.6,2943.5,6.07609089]
[1765955151666,0.001,2943.6,2943.5,9.6338672]
[1765955152535,0.001,2943.6,2943.5,9.64414434]
[1765955160269,0.001,2943.6,2943.5,9.6417271]
[1765955160491,0.001,2943.6,2943.5,13.67174354]
[1765955160808,0.001,2943.6,2943.5,14.07724754]
[1765955161581,0.001,2943.6,2943.5,14.21334894]
[1765955162310,0.001,2943.6,2943.5,14.07724754]
[1765955167775,0.001,2943.6,2943.5,10.51161133]
[1765955169522,0.001,2943.6,2943.5,14.07724754]
[1765955169688,1.6976,2944.9,2943.9,0.4612]
[1765955170023,1.2081,2944.9,2944.7,0.4678]
[1765955170593,0.1092,2944.8,2944.4,0.537]
[1765955170800,0.0049,2944.5,2944.4,0.537]
[1765955171105,0.4944,2944.5,2944.4,0.537]
[1765955171478,0.4944,2944.5,2944.0,0.01027714]
[1765955171479,0.4944,2944.5,2944.1,7.3302475]
[1765955172114,0.0049,2944.5,2944.1,7.7914475]
[1765955172318,0.0049,2944.5,2944.1,11.19834839]
[1765955172509,0.4895,2944.7,2944.1,11.39644839]
[1765955172707,0.65936,2944.7,2944.1,11.39644839]
[1765955173575,0.65936,2944.7,2944.1,7.99982464]
[1765955173914,0.1082,2944.2,2944.1,3.94390089]
[1765955174552,0.4867,2944.5,2944.1,3.94390089]
[1765955174553,0.4867,2944.5,2944.1,7.34052464]
[1765955178863,0.4867,2944.5,2944.1,10.73714839]
[1765955179177,0.4867,2944.5,2944.4,0.929]
[1765955179178,0.001,2944.5,2944.4,0.929]
[1765955180268,0.001,2944.5,2944.4,1.334504]
[1765955180473,1.17131613,2944.9,2944.8,1.39338023]
[1765955180672,1.17131613,2944.9,2944.8,5.49601644]
[1765955180834,1.17131613,2944.9,2944.8,6.04561808]
[1765955181178,1.17131613,2944.9,2944.8,9.44143443]
[1765955183552,1.17131613,2944.9,2944.8,13.41257464]
[1765955183771,1.613e-05,2944.9,2944.8,13.41257464]
[1765955183983,0.001,2946.0,2945.2,14.807417]
[1765955184190,1e-08,2945.3,2945.2,23.93465357]
[1765955184678,1e-08,2945.9,2945.8,1.334504]
[1765955184973,0.001,2946.9,2946.1,0.405504]
[1765955185176,0.0009,2946.7,2946.2,0.85286061]
[1765955185360,0.0009,2946.7,2946.4,6.7879446]
[1765955185674,0.001,2946.9,2946.6,0.4678]
[1765955185891,0.001,2946.9,2946.8,0.4678]
[1765955186094,0.001,2946.9,2946.8,1.24486061]
[1765955186249,0.001,2946.9,2946.8,0.78366061]
[1765955186451,0.001,2946.9,2946.8,0.31586061]
[1765955186683,0.001,2946.9,2946.8,0.78366061]
[1765955187474,0.001,2946.9,2946.8,4.17717221]
[1765955187701,0.001,2946.9,2946.8,0.31586061]
[1765955187702,0.7779,2946.9,2946.8,0.31586061]
[1765955187983,0.5819,2946.7,2946.6,3.93063492]
[1765955188194,0.5819,2946.7,2946.6,4.24543185]
[1765955188556,0.001,2946.9,2946.6,7.63917378]
[1765955188768,0.001,2946.9,2946.7,0.31479693]
[1765955188968,0.001,2946.9,2946.8,0.31479693]
[1765955189165,0.0935,2946.9,2946.7,0.31479693]
[1765955189374,0.0009,2946.8,2946.7,0.31479693]
[1765955189580,0.0009,2946.8,2946.7,3.70842369]
[1765955190090,0.4904,2946.8,2946.7,3.70842369]
[1765955191160,0.4904,2946.8,2946.7,0.31479693]
[1765955192501,0.578,2946.7,2946.3,3.39406515]
[1765955192789,0.578,2946.7,2946.0,0.01027714]
[1765955192790,0.0057,2946.1,2946.0,0.537]
[1765955192961,0.1998,2946.9,2946.0,0.85118158]
[1765955193154,0.6893,2946.9,2946.1,0.32445872]
[1765955193375,0.4895,2946.8,2946.2,0.31418158]
[1765955194088,0.0925,2946.4,2946.3,3.39408749]
[1765955194405,0.0925,2946.4,2946.3,3.70826907]
[1765955195612,0.001,2946.8,2946.7,0.4967]
[1765955195998,0.001,2946.8,2946.5,3.55966857]
[1765955195999,0.1029,2946.8,2946.6,3.39374193]
[1765955196310,0.001,2946.8,2946.6,3.39374193]
[1765955196481,0.001,2946.8,2946.7,3.55966857]
[1765955196679,0.001,2946.8,2946.7,4.80310673]
[1765955196889,0.001,2946.8,2946.7,0.78913816]
[1765955197089,0.1051,2946.8,2946.7,0.31413816]
[1765955197417,0.001,2946.8,2946.7,1.24343816]
[1765955197779,0.1051,2946.8,2946.7,0.31413816]
[1765955197978,0.001,2946.8,2946.7,4.80310673]
[1765955198283,0.001,2946.8,2946.7,4.63706492]
[1765955204739,0.001,2946.8,2946.7,8.19673349]
[1765955204940,0.001,2946.8,2946.7,4.63706492]
[1765955205098,0.001,2946.8,2946.7,8.19673349]
[1765955207643,0.001,2946.8,2946.7,3.70776492]
[1765955207644,0.4687,2946.8,2946.7,3.70776492]
[1765955207842,0.5831,2946.8,2946.7,3.70776492]
[1765955208000,0.5831,2946.8,2946.7,3.39362676]
[1765955208198,0.4772,2946.7,2945.9,0.01027714]
[1765955208407,0.1049,2946.3,2946.2,3.93117075]
[1765955208741,0.001,2946.8,2946.0,3.39543312]
[1765955208742,0.5821,2946.1,2946.0,3.39543312]
[1765955209032,0.5821,2946.1,2946.0,0.001]
[1765955209332,0.5821,2946.1,2946.0,3.39543312]
[1765955209539,0.4677,2946.1,2946.0,0.001]
[1765955210029,0.5821,2946.1,2946.0,0.001]
[1765955213836,4.39059477,2946.1,2946.0,0.001]
[1765955216540,4.39059477,2946.1,2945.0,7.41960454]
[1765955216541,7.65872354,2946.1,2945.0,0.46438023]
[1765955216735,7.65872354,2946.1,2944.9,3.39560298]
[1765955216736,0.744,2945.0,2944.9,3.39560298]
[1765955217303,0.0048,2944.9,2944.8,0.002]
[1765955217503,0.6808,2944.9,2944.8,0.002]
[1765955217710,0.0048,2944.9,2944.8,0.002]
[1765955217946,0.1994,2945.5,2944.8,0.9313]
[1765955218233,0.6766,2945.5,2944.9,0.54727714]
[1765955219245,0.6766,2945.5,2944.9,1.00157714]
[1765955219413,0.4772,2945.9,2945.2,6.7907103]
[1765955219610,0.4772,2945.9,2945.3,1.00157714]
[1765955219952,0.5932,2946.0,2945.5,0.01027714]
[1765955221525,0.5932,2946.0,2945.6,6.78978814]
[1765955222035,0.5932,2946.0,2945.6,3.39489407]
[1765955222529,0.1858,2945.7,2945.6,3.39489407]
[1765955223035,0.5932,2946.0,2945.6,3.39489407]
[1765955223743,0.1858,2945.6,2945.5,3.39497199]
[1765955223948,0.4819,2945.4,2945.3,3.93223742]
[1765955224118,0.4819,2945.4,2944.8,0.002]
[1765955224319,0.0065,2945.0,2944.9,3.39561431]
[1765955224940,0.4522,2945.8,2944.9,6.79131535]
[1765955225836,0.4522,2945.8,2945.0,0.01027714]
[1765955226149,0.4522,2945.6,2945.0,0.01027714]
[1765955226951,0.4497,2945.4,2944.9,6.79131535]